fUSD/lending_fUSD_20260430
["ID","MTS","AMOUNT","RATE_DAILY","PERIOD"]
[421365969,1777498232000,-339.37703188,0.00011999,2]
[421365971,1777498232000,-500.0,0.00011999,2]
[421365979,1777498232000,-452.04785907,0.00012,2]
[421365970,1777498232000,-500.0,0.00011999,2]
[421365961,1777498232000,-500.0,0.00011999,2]
[421365957,1777498232000,-500.0,0.00011999,2]
[421365962,1777498232000,-500.0,0.00011999,2]
[421365965,1777498232000,-500.0,0.00011999,2]
[421365973,1777498232000,-500.0,0.00011999,2]
[421365966,1777498232000,-500.0,0.00011999,2]
[421365968,1777498232000,-160.62296812,0.00011999,2]
[421365967,1777498232000,-500.0,0.00011999,2]
[421365964,1777498232000,-500.0,0.00011999,2]
[421366034,1777498238000,-449.3404125,0.00012,2]
[421366033,1777498238000,-11730.74947756,0.00012,2]
[421366032,1777498238000,-10339.24356323,0.00012,2]
[421366031,1777498238000,-380.52932165,0.00012,2]
[421366029,1777498238000,-265.712551,0.00012,2]
[421366030,1777498238000,-2851.21217869,0.00012,2]
[421366028,1777498238000,-769.71568654,0.00012,2]
[421366027,1777498238000,-6021.21035833,0.00012,2]
[421366035,1777498238000,-20197.1028935,0.00012,2]
[421366040,1777498240000,-1278.04270541,0.00012,2]
[421366041,1777498240000,-500.0,0.00012,2]
[421366043,1777498240000,-4545.95952329,0.00012,2]
[421366042,1777498240000,-295.44116587,0.00012,2]
[421366061,1777498243000,-17533.17424791,0.00012,2]
[421366062,1777498243000,-1607.59263891,0.00012,2]
[421366059,1777498243000,-2119.33276107,0.00012,2]
[421366060,1777498243000,-18433.9619083,0.00012,2]
[421366057,1777498243000,-4461.36695267,0.00012,2]
[421366058,1777498243000,-31859.9999965,0.00012,2]
[421366056,1777498243000,-30479.10333516,0.00012,2]
[421366055,1777498243000,-291.50930259,0.00012,2]
[421366065,1777498244000,-2.47854228,0.00012,2]
[421366068,1777498246000,-427.46515504,0.00012,2]
[421366069,1777498246000,-4477.056514,0.00012,2]
[421366122,1777498294000,500.0,0.0003013,120]
[421366123,1777498567000,500.0,0.00030137,120]
[421366124,1777498586000,508.0,0.00030137,120]
[421366125,1777498611000,334.066,0.00030137,120]
[421366136,1777499432000,-32.41823406,0.00011999,2]
[421366134,1777499432000,-784.36457022,0.000119,2]
[421366135,1777499432000,-500.0,0.00011999,2]
[421366137,1777499432000,-467.58176594,0.00011999,2]
[421366139,1777499432000,-500.0,0.00011999,2]
[421366141,1777499432000,-14804.10800446,0.00012,2]
[421366138,1777499432000,-532.41823406,0.00012,2]
[421366142,1777499432000,-1134.09669,0.00012,2]
[421366143,1777499432000,-54326.582341,0.00012,2]
[421366147,1777499432000,-1970.11833061,0.00012,2]
[421366146,1777499432000,-257162.32791473,0.00012,2]
[421366145,1777499432000,-500.0,0.00011999,2]
[421366144,1777499432000,-500.0,0.00011999,2]
[421366148,1777499432000,-4924.17456802,0.00012,2]
[421366149,1777499432000,-450.0,0.00011999,2]
[421366140,1777499432000,-500.0,0.00011999,2]
[421366174,1777499440000,-225.34347733,0.00012,2]
[421366173,1777499440000,-483.57725937,0.00011999,2]
[421366172,1777499440000,-50.0,0.00011999,2]
[421366175,1777499441000,-15993.47518468,0.00012,2]
[421366178,1777499441000,-13752.12746402,0.00012,2]
[421366177,1777499441000,-167.5199071,0.00012,2]
[421366176,1777499441000,-2515.75340267,0.00012,2]
[421366243,1777499446000,-1159.454826,0.00012,2]
[421366251,1777499446000,-1255.67554142,0.00012,2]
[421366250,1777499446000,-522.02000001,0.00012,2]
[421366269,1777499446000,-6117.31690403,0.00012,2]
[421366284,1777499446000,-3744.34733713,0.00012,2]
[421366287,1777499446000,-400.0,0.00012,2]
[421366278,1777499446000,-3713.08295613,0.00012,2]
[421366282,1777499446000,-1397.6292676,0.00012,2]
[421366280,1777499446000,-458.66526517,0.00012,2]
[421366292,1777499446000,-1000.0,0.00012,2]
[421366299,1777499446000,-6025.76977948,0.00012,2]
[421366301,1777499446000,-400.0,0.00012,2]
[421366290,1777499446000,-3600.88778703,0.00012,2]
[421366320,1777499748000,1000.0,0.00012,60]
[421366323,1777500299000,-11258.732943,0.00012,2]
[421366324,1777500526000,700.0,0.00030136,120]
[421366343,1777500632000,-4388.19,0.000172,2]
[421366342,1777500632000,-1574.49,0.000172,2]
[421366336,1777500632000,-472.6238364,0.00016438,2]
[421366347,1777500632000,-268.7400332,0.00017916,2]
[421366349,1777500632000,-1000.0,0.000199,2]
[421366351,1777500632000,-699.14418501,0.000208,2]
[421366365,1777500632000,-162.31979731,0.00024931,2]
[421366362,1777500632000,-1000.0,0.000236,2]
[421366367,1777500632000,-222.79,0.00024962,2]
[421366345,1777500632000,-152.0,0.00017203,7]
[421366369,1777500632000,-506.0,0.00027137,2]
[421366371,1777500632000,-1500.0,0.00027397,2]
[421366353,1777500632000,-3459.13921499,0.000208,2]
[421366364,1777500632000,-15020.4661,0.00024019,2]
[421366340,1777500632000,-3063.02,0.000172,5]
[421366337,1777500632000,-1882.2266371,0.000172,2]
[421366341,1777500632000,-150.99,0.000172,2]
[421366373,1777500632000,-1000.0,0.00027398,2]
[421366326,1777500632000,-1521.8083903,0.00012,2]
[421366330,1777500632000,-2500.0,0.000132,2]
[421366327,1777500632000,-1614.2198903,0.00012,2]
[421366332,1777500632000,-2500.0,0.000132,2]
[421366325,1777500632000,-1882.2266371,0.00012,2]
[421366344,1777500632000,-2992.92,0.000172,2]
[421366328,1777500632000,-235.5147451,0.00012005,2]
[421366331,1777500632000,-2500.0,0.000132,2]
[421366334,1777500632000,-250.0,0.000132,2]
[421366333,1777500632000,-2500.0,0.000132,2]
[421366335,1777500632000,-2000.0,0.000162,2]
[421366338,1777500632000,-1521.8083903,0.000172,2]
[421366339,1777500632000,-1614.2198903,0.000172,2]
[421366329,1777500632000,-152.0,0.00012261,7]
[421366358,1777500632000,-1521.8083903,0.000224,2]
[421366437,1777500632000,-6001.36,0.000308,10]
[421366356,1777500632000,-1882.2266371,0.000224,2]
[421366417,1777500632000,-256.0,0.00030136,30]
[421366415,1777500632000,-493.0,0.00030136,30]
[421366419,1777500632000,-200.0,0.00030137,40]
[421366426,1777500632000,-5000.0,0.00030295,2]
[421366424,1777500632000,-200.0,0.00030232,2]
[421366432,1777500632000,-173.19,0.00030411,120]
[421366405,1777500632000,-166.66,0.00029759,30]
[421366433,1777500632000,-200.0,0.00030603,2]
[421366428,1777500632000,-1000.0,0.00030334,120]
[421366430,1777500632000,-166.66,0.00030373,30]
[421366441,1777500632000,-8641.95,0.0003081,10]
[421366435,1777500632000,-506.0,0.00030661,5]
[421366443,1777500632000,-917.98914275,0.0003081,10]
[421366359,1777500632000,-1614.2198903,0.000224,2]
[421366439,1777500632000,-5001.13,0.000308,10]
[421366407,1777500632000,-469.62,0.00029889,7]
[421366421,1777500632000,-500.0,0.00030137,120]
[421366402,1777500632000,-150.0,0.00029534,2]
[421366379,1777500632000,-1614.2198903,0.000276,2]
[421366377,1777500632000,-1521.8083903,0.000276,2]
[421366410,1777500632000,-1000.0,0.00030136,2]
[421366382,1777500632000,-1000.0,0.00027854,7]
[421366396,1777500632000,-1000.0,0.00029223,7]
[421366398,1777500632000,-1000.0,0.00029232,30]
[421366390,1777500632000,-1000.0,0.00028833,2]
[421366384,1777500632000,-1806.55590949,0.00028,2]
[421366375,1777500632000,-1882.2266371,0.000276,2]
[421366386,1777500632000,-1000.0,0.0002831,30]
[421366388,1777500632000,-1000.0,0.00028767,2]
[421366392,1777500632000,-1000.0,0.00029032,7]
[421366403,1777500632000,-1000.0,0.0002968,30]
[421366412,1777500632000,-2036.0,0.00030136,30]
[421366394,1777500632000,-166.66,0.00029146,30]
[421366480,1777500638000,-1866.0,0.0003081,30]
[421366479,1777500638000,-473.0,0.0003081,30]
[421366478,1777500638000,-1000.0,0.00030136,2]
[421366476,1777500638000,-1000.0,0.00029232,30]
[421366474,1777500638000,-1000.0,0.00029024,7]
[421366471,1777500638000,-1000.0,0.0002831,30]
[421366475,1777500638000,-1000.0,0.00029223,7]
[421366473,1777500638000,-1000.0,0.00028817,2]
[421366469,1777500638000,-1000.0,0.00027398,2]
[421366477,1777500638000,-1000.0,0.0002968,30]
[421366472,1777500638000,-1000.0,0.00028767,2]
[421366481,1777500638000,-1408.0,0.0003082,120]
[421366470,1777500638000,-1000.0,0.00027854,7]
[421366486,1777500638000,-2000.0,0.00031,2]
[421366494,1777500638000,-300.0,0.00031281,2]
[421366491,1777500638000,-151.0,0.00031079,30]
[421366492,1777500638000,-152.0,0.00031079,30]
[421366484,1777500638000,-549.34,0.00030972,2]
[421366493,1777500638000,-161.0,0.00031081,30]
[421366495,1777500638000,-150.0,0.00031547,2]
[421366489,1777500638000,-161.0,0.00031079,30]
[421366488,1777500638000,-500.0,0.00031013,120]
[421366487,1777500638000,-150.0,0.00031011,2]
[421366482,1777500638000,-2500.0,0.00030833,120]
[421366485,1777500638000,-166.66,0.00030987,30]
[421366483,1777500638000,-1000.0,0.00030889,2]
[421366490,1777500638000,-157.0,0.00031079,30]
[421366556,1777500639000,-600.0,0.00035616,120]
[421366553,1777500639000,-600.0,0.00035616,120]
[421366559,1777500639000,-468.0,0.00035838,3]
[421366551,1777500639000,-600.0,0.00035616,120]
[421366549,1777500639000,-192.0,0.00035578,120]
[421366541,1777500639000,-500.0,0.00035068,120]
[421366545,1777500639000,-188.50604665,0.00035181,2]
[421366531,1777500639000,-455.2860135,0.00034653,120]
[421366529,1777500639000,-161.43626966,0.0003457,39]
[421366562,1777500639000,-150.0,0.00035899,2]
[421366547,1777500639000,-814.56821618,0.00035299,99]
[421366560,1777500639000,-468.0,0.00035838,3]
[421366565,1777500639000,-500.0,0.00036712,120]
[421366563,1777500639000,-157.0,0.00036079,30]
[421366561,1777500639000,-500.0,0.0003589,120]
[421366554,1777500639000,-600.0,0.00035616,120]
[421366557,1777500639000,-178.76142493,0.00035616,2]
[421366555,1777500639000,-600.0,0.00035616,120]
[421366543,1777500639000,-157.0,0.00035079,30]
[421366564,1777500639000,-876.09302038,0.0003662,120]
[421366566,1777500639000,-500.0,0.00036986,120]
[421366567,1777500639000,-500.0,0.00036986,120]
[421366570,1777500639000,-500.0,0.00036986,120]
[421366569,1777500639000,-500.0,0.00036986,120]
[421366568,1777500639000,-500.0,0.00036986,120]
[421366572,1777500639000,-200.0,0.00036986,120]
[421366558,1777500639000,-162.75,0.0003572,2]
[421366533,1777500639000,-1408.0,0.00034673,120]
[421366515,1777500639000,-429.28938292,0.00033434,95]
[421366525,1777500639000,-500.0,0.00034247,120]
[421366573,1777500639000,-158.70087969,0.00037079,30]
[421366496,1777500639000,-636.327219,0.00031582,60]
[421366497,1777500639000,-227.7564714,0.00031582,60]
[421366498,1777500639000,-166.66,0.000316,30]
[421366500,1777500639000,-500.0,0.00031726,120]
[421366508,1777500639000,-166.66,0.00032565,2]
[421366503,1777500639000,-151.0,0.00032079,30]
[421366506,1777500639000,-166.66,0.00032214,30]
[421366505,1777500639000,-161.0,0.00032081,30]
[421366501,1777500639000,-161.0,0.00032079,30]
[421366504,1777500639000,-152.0,0.00032079,30]
[421366507,1777500639000,-150.0,0.00032562,2]
[421366535,1777500639000,-1500.0,0.00034795,2]
[421366502,1777500639000,-157.0,0.00032079,30]
[421366521,1777500639000,-506.0,0.00034185,9]
[421366523,1777500639000,-150.0,0.0003419,2]
[421366511,1777500639000,-157.0,0.00033079,30]
[421366509,1777500639000,-500.0,0.00032657,120]
[421366512,1777500639000,-151.0,0.00033079,30]
[421366513,1777500639000,-152.0,0.00033079,30]
[421366519,1777500639000,-157.0,0.00034079,30]
[421366514,1777500639000,-161.0,0.00033081,30]
[421366517,1777500639000,-500.0,0.00033479,120]
[421366527,1777500639000,-793.378,0.0003457,39]
[421366539,1777500639000,-168.02692303,0.00035024,2]
[421366537,1777500639000,-2000.0,0.00034875,2]
[421366510,1777500639000,-161.0,0.00033079,30]
[421366574,1777500639000,-162.75,0.00037194,2]
[421366499,1777500639000,-192.0,0.00031625,120]
[421366576,1777500639000,-500.0,0.00037534,120]
[421366607,1777500639000,-491.01442266,0.00037928,2]
[421366609,1777500639000,-300.0,0.00037928,2]
[421366603,1777500639000,-300.0,0.00037928,2]
[421366604,1777500639000,-300.0,0.00037928,2]
[421366605,1777500639000,-300.0,0.00037928,2]
[421366608,1777500639000,-300.0,0.00037928,2]
[421366610,1777500639000,-300.0,0.00037928,2]
[421366613,1777500639000,-383.2419067,0.00037928,2]
[421366615,1777500639000,-525.95885708,0.00037928,2]
[421366614,1777500639000,-300.0,0.00037928,2]
[421366624,1777500639000,-300.0,0.00037928,2]
[421366616,1777500639000,-1063.30858973,0.00037928,2]
[421366606,1777500639000,-300.0,0.00037928,2]
[421366618,1777500639000,-302.03006712,0.00037928,2]
[421366619,1777500639000,-723.61897705,0.00037928,2]
[421366620,1777500639000,-407.36561174,0.00037928,2]
[421366622,1777500639000,-300.0,0.00037928,2]
[421366623,1777500639000,-300.0,0.00037928,2]
[421366617,1777500639000,-890.38635649,0.00037928,2]
[421366626,1777500639000,-305.72922293,0.00037928,2]
[421366627,1777500639000,-502.7961826,0.00037928,2]
[421366628,1777500639000,-331.83437187,0.00037928,2]
[421366629,1777500639000,-300.0,0.00037928,2]
[421366625,1777500639000,-300.0,0.00037928,2]
[421366632,1777500639000,-1790.27047416,0.00037928,2]
[421366630,1777500639000,-839.32738085,0.00037928,2]
[421366621,1777500639000,-300.0,0.00037928,2]
[421366600,1777500639000,-300.0,0.00037928,2]
[421366631,1777500639000,-300.0,0.00037928,2]
[421366611,1777500639000,-602.42963136,0.00037928,2]
[421366602,1777500639000,-300.0,0.00037928,2]
[421366578,1777500639000,-150.0,0.00037694,2]
[421366575,1777500639000,-190.53878735,0.000372,120]
[421366587,1777500639000,-300.0,0.00037928,2]
[421366586,1777500639000,-300.0,0.00037928,2]
[421366579,1777500639000,-506.0,0.0003771,13]
[421366580,1777500639000,-797.0,0.00037753,5]
[421366581,1777500639000,-590.08204714,0.00037753,120]
[421366584,1777500639000,-5347.6157,0.00037825,2]
[421366583,1777500639000,-2000.0,0.00037825,2]
[421366577,1777500639000,-150.0,0.00037652,7]
[421366585,1777500639000,-308.79275606,0.00037928,2]
[421366582,1777500639000,-150.0,0.000378,120]
[421366571,1777500639000,-500.0,0.00036986,120]
[421366588,1777500639000,-538.34945185,0.00037928,2]
[421366590,1777500639000,-300.0,0.00037928,2]
[421366612,1777500639000,-300.0,0.00037928,2]
[421366601,1777500639000,-300.0,0.00037928,2]
[421366595,1777500639000,-300.0,0.00037928,2]
[421366598,1777500639000,-463.19969099,0.00037928,2]
[421366597,1777500639000,-300.0,0.00037928,2]
[421366594,1777500639000,-300.0,0.00037928,2]
[421366593,1777500639000,-1090.98668708,0.00037928,2]
[421366596,1777500639000,-300.0,0.00037928,2]
[421366592,1777500639000,-344.82403019,0.00037928,2]
[421366599,1777500639000,-300.0,0.00037928,2]
[421366589,1777500639000,-419.85965851,0.00037928,2]
[421366591,1777500639000,-300.0,0.00037928,2]
[421366680,1777500640000,-602.42963136,0.00037928,2]
[421366676,1777500640000,-491.01442266,0.00037928,2]
[421366669,1777500640000,-110.28204456,0.00037928,2]
[421366679,1777500640000,-300.0,0.00037928,2]
[421366665,1777500640000,-29.81808008,0.00037928,2]
[421366668,1777500640000,-189.71795544,0.00037928,2]
[421366666,1777500640000,-300.0,0.00037928,2]
[421366664,1777500640000,-764.0,0.0003081,30]
[421366667,1777500640000,-300.0,0.00037928,2]
[421366678,1777500640000,-300.0,0.00037928,2]
[421366670,1777500640000,-300.0,0.00037928,2]
[421366677,1777500640000,-300.0,0.00037928,2]
[421366675,1777500640000,-300.0,0.00037928,2]
[421366672,1777500640000,-300.0,0.00037928,2]
[421366673,1777500640000,-300.0,0.00037928,2]
[421366674,1777500640000,-300.0,0.00037928,2]
[421366662,1777500640000,-484.18866343,0.00037928,2]
[421366681,1777500640000,-300.0,0.00037928,2]
[421366684,1777500640000,-878.79671355,0.00037928,2]
[421366683,1777500640000,-1063.30858973,0.00037928,2]
[421366682,1777500640000,-525.95885708,0.00037928,2]
[421366685,1777500640000,-11.58964294,0.00037928,2]
[421366693,1777500640000,-300.0,0.00037928,2]
[421366686,1777500640000,-302.03006712,0.00037928,2]
[421366687,1777500640000,-723.61897705,0.00037928,2]
[421366671,1777500640000,-358.50974106,0.00037928,2]
[421366663,1777500640000,-270.18191992,0.00037928,2]
[421366654,1777500640000,-300.0,0.00037928,2]
[421366659,1777500640000,-300.0,0.00037928,2]
[421366690,1777500640000,-58.06698768,0.00037928,2]
[421366633,1777500640000,-300.0,0.00037928,2]
[421366635,1777500640000,-1143.28605913,0.00037928,2]
[421366634,1777500640000,-342.75795842,0.00037928,2]
[421366636,1777500640000,-308.5418779,0.00037928,2]
[421366640,1777500640000,-300.0,0.00037928,2]
[421366644,1777500640000,-462.29239414,0.00037928,2]
[421366642,1777500640000,-300.0,0.00037928,2]
[421366639,1777500640000,-300.0,0.00037928,2]
[421366638,1777500640000,-861.48587114,0.00037928,2]
[421366637,1777500640000,-300.0,0.00037928,2]
[421366645,1777500640000,-300.0,0.00037928,2]
[421366661,1777500640000,-300.0,0.00037928,2]
[421366641,1777500640000,-309.84039163,0.00037928,2]
[421366646,1777500640000,-433.17313298,0.00037928,2]
[421366647,1777500640000,-363.88028264,0.00037928,2]
[421366649,1777500640000,-300.0,0.00037928,2]
[421366650,1777500640000,-300.0,0.00037928,2]
[421366651,1777500640000,-300.0,0.00037928,2]
[421366653,1777500640000,-300.0,0.00037928,2]
[421366652,1777500640000,-300.0,0.00037928,2]
[421366655,1777500640000,-482.43942189,0.00037928,2]
[421366657,1777500640000,-300.0,0.00037928,2]
[421366656,1777500640000,-308.79275606,0.00037928,2]
[421366658,1777500640000,-419.85965851,0.00037928,2]
[421366660,1777500640000,-1090.98668708,0.00037928,2]
[421366643,1777500640000,-300.0,0.00037928,2]
[421366648,1777500640000,-450.3651763,0.00037928,2]
[421366688,1777500640000,-300.0,0.00037928,2]
[421366692,1777500640000,-241.93301232,0.00037928,2]
[421366723,1777500640000,-308.79275606,0.00037928,2]
[421366724,1777500640000,-300.0,0.00037928,2]
[421366728,1777500640000,-340.56135624,0.00037928,2]
[421366729,1777500640000,-300.0,0.00037928,2]
[421366727,1777500640000,-1090.98668708,0.00037928,2]
[421366726,1777500640000,-300.0,0.00037928,2]
[421366730,1777500640000,-300.0,0.00037928,2]
[421366735,1777500640000,-300.0,0.00037928,2]
[421366732,1777500640000,-483.17319894,0.00037928,2]
[421366733,1777500640000,-300.0,0.00037928,2]
[421366738,1777500640000,-300.0,0.00037928,2]
[421366734,1777500640000,-300.0,0.00037928,2]
[421366725,1777500640000,-419.85965851,0.00037928,2]
[421366736,1777500640000,-300.0,0.00037928,2]
[421366741,1777500640000,-602.42963136,0.00037928,2]
[421366737,1777500640000,-491.01442266,0.00037928,2]
[421366740,1777500640000,-300.0,0.00037928,2]
[421366739,1777500640000,-300.0,0.00037928,2]
[421366742,1777500640000,-300.0,0.00037928,2]
[421366743,1777500640000,-525.95885708,0.00037928,2]
[421366745,1777500640000,-890.38635649,0.00037928,2]
[421366746,1777500640000,-302.03006712,0.00037928,2]
[421366747,1777500640000,-723.61897705,0.00037928,2]
[421366744,1777500640000,-1063.30858973,0.00037928,2]
[421366748,1777500640000,-300.0,0.00037928,2]
[421366689,1777500640000,-300.0,0.00037928,2]
[421366731,1777500640000,-300.0,0.00037928,2]
[421366721,1777500640000,-300.0,0.00037928,2]
[421366749,1777500640000,-309.49618474,0.00037928,2]
[421366719,1777500640000,-300.0,0.00037928,2]
[421366705,1777500640000,-861.48587114,0.00037928,2]
[421366695,1777500640000,-331.83437187,0.00037928,2]
[421366706,1777500640000,-300.0,0.00037928,2]
[421366703,1777500640000,-308.5418779,0.00037928,2]
[421366699,1777500640000,-1790.27047416,0.00037928,2]
[421366700,1777500640000,-300.0,0.00037928,2]
[421366701,1777500640000,-342.75795842,0.00037928,2]
[421366722,1777500640000,-482.43942189,0.00037928,2]
[421366704,1777500640000,-300.0,0.00037928,2]
[421366696,1777500640000,-300.0,0.00037928,2]
[421366702,1777500640000,-1143.28605913,0.00037928,2]
[421366698,1777500640000,-300.0,0.00037928,2]
[421366697,1777500640000,-839.32738085,0.00037928,2]
[421366694,1777500640000,-300.0,0.00037928,2]
[421366709,1777500640000,-309.84039163,0.00037928,2]
[421366707,1777500640000,-463.42937287,0.00037928,2]
[421366720,1777500640000,-448.49892205,0.00037928,2]
[421366717,1777500640000,-300.0,0.00037928,2]
[421366713,1777500640000,-300.0,0.00037928,2]
[421366708,1777500640000,-531.39939254,0.00037928,2]
[421366712,1777500640000,-462.29239414,0.00037928,2]
[421366715,1777500640000,-450.3651763,0.00037928,2]
[421366718,1777500640000,-300.0,0.00037928,2]
[421366714,1777500640000,-433.17313298,0.00037928,2]
[421366711,1777500640000,-575.88263782,0.00037928,2]
[421366710,1777500640000,-300.0,0.00037928,2]
[421366716,1777500640000,-300.0,0.00037928,2]
[421366787,1777500641000,-300.0,0.00037928,2]
[421366792,1777500641000,-535.64356778,0.00037928,2]
[421366788,1777500641000,-300.0,0.00037928,2]
[421366789,1777500641000,-300.0,0.00037928,2]
[421366785,1777500641000,-300.0,0.00037928,2]
[421366783,1777500641000,-300.69379518,0.00037928,2]
[421366784,1777500641000,-1090.98668708,0.00037928,2]
[421366786,1777500641000,-300.0,0.00037928,2]
[421366782,1777500641000,-300.0,0.00037928,2]
[421366780,1777500641000,-419.85965851,0.00037928,2]
[421366781,1777500641000,-300.0,0.00037928,2]
[421366790,1777500641000,-300.0,0.00037928,2]
[421366803,1777500641000,-1063.30858973,0.00037928,2]
[421366791,1777500641000,-300.0,0.00037928,2]
[421366796,1777500641000,-300.0,0.00037928,2]
[421366794,1777500641000,-300.0,0.00037928,2]
[421366795,1777500641000,-491.01442266,0.00037928,2]
[421366793,1777500641000,-300.0,0.00037928,2]
[421366797,1777500641000,-300.0,0.00037928,2]
[421366798,1777500641000,-300.0,0.00037928,2]
[421366800,1777500641000,-602.42963136,0.00037928,2]
[421366799,1777500641000,-300.0,0.00037928,2]
[421366801,1777500641000,-300.0,0.00037928,2]
[421366810,1777500641000,-300.0,0.00037928,2]
[421366779,1777500641000,-300.0,0.00037928,2]
[421366802,1777500641000,-525.95885708,0.00037928,2]
[421366777,1777500641000,-482.43942189,0.00037928,2]
[421366764,1777500641000,-516.24034274,0.00037928,2]
[421366776,1777500641000,-300.0,0.00037928,2]
[421366754,1777500641000,-300.0,0.00037928,2]
[421366753,1777500641000,-331.83437187,0.00037928,2]
[421366751,1777500641000,-300.0,0.00037928,2]
[421366752,1777500641000,-300.0,0.00037928,2]
[421366750,1777500641000,-300.0,0.00037928,2]
[421366756,1777500641000,-300.0,0.00037928,2]
[421366755,1777500641000,-839.32738085,0.00037928,2]
[421366757,1777500641000,-1790.27047416,0.00037928,2]
[421366759,1777500641000,-342.75795842,0.00037928,2]
[421366758,1777500641000,-300.0,0.00037928,2]
[421366763,1777500641000,-861.48587114,0.00037928,2]
[421366762,1777500641000,-389.81986197,0.00037928,2]
[421366765,1777500641000,-318.02048994,0.00037928,2]
[421366760,1777500641000,-1143.28605913,0.00037928,2]
[421366761,1777500641000,-308.5418779,0.00037928,2]
[421366767,1777500641000,-300.0,0.00037928,2]
[421366766,1777500641000,-309.84039163,0.00037928,2]
[421366768,1777500641000,-462.29239414,0.00037928,2]
[421366770,1777500641000,-433.17313298,0.00037928,2]
[421366769,1777500641000,-300.0,0.00037928,2]
[421366772,1777500641000,-300.0,0.00037928,2]
[421366774,1777500641000,-300.0,0.00037928,2]
[421366771,1777500641000,-450.3651763,0.00037928,2]
[421366773,1777500641000,-300.0,0.00037928,2]
[421366775,1777500641000,-417.85857967,0.00037928,2]
[421366778,1777500641000,-308.79275606,0.00037928,2]
[421366804,1777500641000,-890.38635649,0.00037928,2]
[421366820,1777500641000,-861.48587114,0.00037928,2]
[421366805,1777500641000,-302.03006712,0.00037928,2]
[421366840,1777500641000,-300.0,0.00037928,2]
[421366838,1777500641000,-300.0,0.00037928,2]
[421366839,1777500641000,-300.0,0.00037928,2]
[421366842,1777500641000,-300.0,0.00037928,2]
[421366843,1777500641000,-300.0,0.00037928,2]
[421366845,1777500641000,-572.44297128,0.00037928,2]
[421366844,1777500641000,-300.0,0.00037928,2]
[421366846,1777500641000,-491.01442266,0.00037928,2]
[421366847,1777500641000,-321.97842661,0.00037928,2]
[421366849,1777500641000,-300.0,0.00037928,2]
[421366848,1777500641000,-300.0,0.00037928,2]
[421366854,1777500641000,-890.38635649,0.00037928,2]
[421366851,1777500641000,-300.0,0.00037928,2]
[421366850,1777500641000,-602.42963136,0.00037928,2]
[421366853,1777500641000,-1063.30858973,0.00037928,2]
[421366852,1777500641000,-525.95885708,0.00037928,2]
[421366857,1777500641000,-420.13050492,0.00037928,2]
[421366858,1777500641000,-300.0,0.00037928,2]
[421366855,1777500641000,-302.03006712,0.00037928,2]
[421366856,1777500641000,-723.61897705,0.00037928,2]
[421366860,1777500641000,-300.0,0.00037928,2]
[421366863,1777500641000,-1790.27047416,0.00037928,2]
[421366859,1777500641000,-300.0,0.00037928,2]
[421366862,1777500641000,-839.32738085,0.00037928,2]
[421366807,1777500641000,-300.0,0.00037928,2]
[421366841,1777500641000,-484.90696294,0.00037928,2]
[421366837,1777500641000,-300.0,0.00037928,2]
[421366861,1777500641000,-300.0,0.00037928,2]
[421366831,1777500641000,-482.43942189,0.00037928,2]
[421366836,1777500641000,-1090.98668708,0.00037928,2]
[421366806,1777500641000,-723.61897705,0.00037928,2]
[421366809,1777500641000,-300.0,0.00037928,2]
[421366811,1777500641000,-364.34201033,0.00037928,2]